bitfinex-derivatives/quotes_ETHF0:USTF0_20260121
["timestamp","ask_amount","ask_price","bid_price","bid_amount"]
[1769014620110,3.41466066,2900.8,2898.5,3.81075125]
[1769014620313,3.58717066,2900.5,2898.5,0.00435319]
[1769014620512,3.41466066,2899.4,2896.6,3.80650806]
[1769014620711,3.41466066,2899.4,2897.1,3.63376806]
[1769014621008,3.41466066,2900.6,2897.8,3.63376806]
[1769014621215,3.41466066,2900.6,2897.8,5.55176806]
[1769014621413,3.58716066,2900.6,2897.8,3.80643806]
[1769014621614,0.00269422,2900.6,2898.7,0.17261]
[1769014621811,0.86981763,2902.1,2899.1,1.9418977]
[1769014622016,3.41466066,2901.8,2899.2,3.63376806]
[1769014622319,3.41466066,2902.5,2900.1,0.17253]
[1769014622616,3.41466066,2902.5,2900.2,3.63376806]
[1769014622805,0.00282768,2902.5,2900.6,3.63376806]
[1769014623005,0.00282768,2902.5,2900.5,3.63376806]
[1769014623204,3.41748834,2902.5,2900.3,1.918]
[1769014623407,3.41748834,2902.5,2900.2,0.00306253]
[1769014623610,3.58987834,2902.5,2900.2,0.00306253]
[1769014623809,3.41748834,2902.5,2900.2,0.00306253]
[1769014624009,0.17242,2902.0,2900.2,0.00306253]
[1769014624214,0.00282768,2902.5,2900.2,0.00306253]
[1769014624408,3.41748834,2902.5,2900.2,0.00306253]
[1769014624608,0.00282768,2902.5,2900.4,3.63376806]
[1769014624814,3.86412089,2903.9,2901.1,5.57566576]
[1769014625318,3.41466066,2903.3,2900.5,3.80627806]
[1769014625719,3.41466066,2903.3,2900.7,3.63376806]
[1769014625918,3.41466066,2902.5,2900.2,0.00306253]
[1769014626521,3.41466066,2901.7,2900.2,0.00306253]
[1769014626718,0.87360938,2903.3,2900.2,0.00306253]
[1769014626719,3.58711066,2901.5,2900.2,0.00306253]
[1769014626914,3.41466066,2902.2,2900.2,0.00306253]
[1769014627418,3.58707066,2902.2,2900.2,0.00306253]
[1769014628224,3.41466066,2903.0,2900.6,3.80626806]
[1769014628722,3.41466066,2902.5,2900.2,0.00306253]
[1769014629032,3.58708066,2902.1,2900.2,0.00306253]
[1769014629320,0.00379175,2903.3,2901.7,3.63376806]
[1769014629716,0.00379175,2903.3,2902.0,3.63376806]
[1769014630216,0.00379175,2903.3,2901.3,0.17246]
[1769014630409,0.00379175,2903.3,2900.6,3.80626806]
[1769014630914,0.00379175,2903.3,2900.7,3.63376806]
[1769014631421,0.00379175,2903.3,2902.0,0.17242]
[1769014631619,0.00379175,2903.3,2901.2,0.17247]
[1769014631816,0.00379175,2903.3,2901.3,0.17246]
[1769014632122,0.00379175,2903.3,2900.2,0.00306253]
[1769014632123,3.41466066,2902.3,2900.2,0.00306253]
[1769014632311,2.114,2902.2,2900.2,0.00306253]
[1769014632516,2.114,2902.2,2898.7,1.9418977]
[1769014632517,3.41466066,2901.6,2899.4,0.17257]
[1769014632826,2.29041,2902.2,2899.7,3.80631806]
[1769014633026,0.17241,2902.2,2899.8,0.17255]
[1769014633224,3.41466066,2902.3,2899.7,3.63376806]
[1769014633433,3.41466066,2902.3,2900.3,0.17252]
[1769014633922,3.41466066,2902.3,2899.7,3.63757536]
[1769014633923,3.58703066,2902.9,2899.7,3.63757536]
[1769014634112,3.41466066,2902.7,2899.7,3.63757536]
[1769014634311,3.41466066,2902.7,2899.7,0.0038073]
[1769014634312,1.9418977,2902.2,2899.7,0.0038073]
[1769014634517,2.121,2902.1,2899.8,0.17255]
[1769014634718,0.17241,2902.2,2899.8,0.17255]
[1769014634921,2.12,2902.3,2900.2,0.17253]
[1769014635122,3.41466066,2902.8,2900.2,0.17253]
[1769014635426,3.41466066,2902.8,2899.8,3.63376806]
[1769014635427,3.41466066,2902.6,2900.3,0.17252]
[1769014635622,1.01379507,2902.5,2900.3,0.17252]
[1769014635819,0.00379175,2903.3,2901.9,3.75499281]
[1769014636121,0.00379175,2903.3,2902.0,0.17242]
[1769014636325,0.00379175,2903.3,2901.9,0.00432537]
[1769014637424,2.122,2903.2,2901.9,0.00432537]
[1769014637621,0.00379175,2903.3,2901.9,0.00432537]
[1769014638017,2.122,2903.2,2901.9,0.00432537]
[1769014638219,2.122,2903.1,2901.9,0.00432537]
[1769014638430,2.122,2903.0,2900.7,3.75499281]
[1769014638616,2.29436,2903.0,2900.7,3.75499281]
[1769014638927,3.50943719,2902.8,2900.6,0.1725]
[1769014639123,0.17239,2902.5,2900.1,3.75499281]
[1769014639318,3.56678041,2901.8,2897.9,1.9418977]
[1769014639523,3.56678041,2901.6,2899.3,0.17258]
[1769014639720,1.917,2901.5,2899.3,0.17258]
[1769014639922,3.56678041,2901.3,2897.9,0.00402829]
[1769014640122,3.56678041,2902.6,2900.2,0.17252]
[1769014640319,3.56678041,2902.5,2900.5,0.17251]
[1769014640516,2.124,2902.4,2900.5,0.17251]
[1769014640826,3.56678041,2902.2,2900.2,0.00278385]
[1769014641028,3.56678041,2902.0,2900.2,0.00278385]
[1769014641330,3.56678041,2901.8,2900.2,0.00278385]
[1769014641521,2.124,2901.7,2900.2,0.00278385]
[1769014641719,3.56678041,2901.8,2900.2,0.00278385]
[1769014641914,2.124,2901.9,2900.2,0.00278385]
[1769014642114,0.86981763,2903.0,2900.2,3.75777666]
[1769014642327,6.7094662,2902.9,2900.2,3.75777666]
[1769014642528,1.01868579,2902.8,2900.2,3.75777666]
[1769014642719,1.01868579,2902.8,2901.0,0.17248]
[1769014643024,3.56678041,2902.7,2900.5,0.17251]
[1769014643227,3.14565875,2902.6,2900.5,0.17251]
[1769014643417,3.56678041,2902.4,2900.5,0.17251]
[1769014643617,3.56678041,2902.2,2900.2,0.00278385]
[1769014643824,3.56678041,2901.8,2900.2,0.00278385]
[1769014644041,3.56678041,2901.3,2898.5,0.17262]
[1769014644321,3.56678041,2901.3,2898.4,3.75499281]
[1769014644322,0.86981763,2900.3,2897.7,3.92766281]
[1769014644517,3.56678041,2900.1,2898.0,0.17265]
[1769014644916,2.129,2900.0,2898.1,0.17265]
[1769014645231,3.57066575,2900.1,2898.1,0.17265]
[1769014645426,2.129,2900.0,2898.1,0.17265]
[1769014645623,3.57066575,2900.1,2898.1,0.17265]
[1769014645927,0.00388534,2900.1,2898.1,3.75499281]
[1769014646119,0.00388534,2900.1,2898.8,0.17261]
[1769014646429,0.00388534,2900.1,2898.9,0.1726]
[1769014647428,0.00388534,2900.1,2898.1,3.75499281]
[1769014647631,0.00388534,2900.1,2898.6,0.17262]
[1769014648120,0.00388534,2900.1,2898.7,0.17262]
[1769014648516,0.00388534,2900.1,2899.0,3.75499281]
[1769014648726,4.43659804,2901.5,2899.8,0.17255]
[1769014648925,0.86981763,2901.9,2899.5,3.75499281]
[1769014649123,3.56678041,2901.7,2899.5,3.75499281]
[1769014649321,4.58933202,2901.6,2899.5,3.75499281]
[1769014649529,1.02255161,2901.5,2899.5,3.75499281]
[1769014649727,1.89236924,2901.4,2899.4,0.17257]
[1769014650024,2.123,2901.3,2899.4,0.17257]
[1769014650223,1.88793732,2901.2,2899.4,0.17257]
[1769014650416,1.88793732,2901.2,2898.0,0.00442484]
[1769014650417,1.02227339,2901.1,2899.6,3.75499281]
[1769014650617,0.00315495,2901.5,2900.0,0.17254]
[1769014650822,1.0225845,2901.4,2900.0,0.17254]
[1769014651029,0.00315495,2901.5,2900.0,0.17254]
[1769014651328,0.00315495,2901.5,2900.1,0.17253]
[1769014651523,0.00315495,2901.5,2900.1,0.17530402]
[1769014651729,1.02325515,2901.4,2900.1,0.17530402]
[1769014651928,1.02325657,2901.3,2900.1,0.17530402]
[1769014652132,0.00315495,2901.5,2900.1,0.17530402]
[1769014652332,1.02324038,2901.4,2900.1,0.17530402]
[1769014652631,0.00315495,2901.5,2900.1,0.17530402]
[1769014652834,1.02323765,2901.4,2900.1,0.17530402]
[1769014653133,0.00315495,2901.5,2900.1,3.75776683]
[1769014653726,0.00315495,2901.5,2900.1,0.00277402]
[1769014654125,1.02248029,2901.4,2900.1,0.00277402]
[1769014654426,1.02232672,2901.3,2900.1,0.00277402]
[1769014654730,2.12215495,2901.5,2900.1,0.00277402]
[1769014654928,1.02273479,2901.4,2900.1,0.00277402]
[1769014655131,2.12215495,2901.5,2900.1,0.00277402]
[1769014655132,1.02273479,2901.3,2900.1,0.00277402]
[1769014655331,2.98781888,2901.5,2900.1,0.00277402]
[1769014655533,1.02290255,2901.4,2900.1,0.00277402]
[1769014655833,1.02290255,2901.3,2900.1,0.00277402]
[1769014656031,0.86881888,2901.5,2900.1,0.00277402]
[1769014656232,1.02289846,2901.4,2900.1,0.00277402]
[1769014656433,4.43244434,2901.1,2899.0,0.1726]
[1769014656627,0.86566393,2900.9,2899.0,0.1726]
[1769014657023,0.86566393,2900.7,2899.1,0.17259]
[1769014657329,1.02289846,2900.7,2899.2,3.75499281]
[1769014657534,0.86566393,2901.2,2899.4,0.17534402]
[1769014657725,0.86566393,2901.2,2899.4,0.17257]
[1769014657931,0.86566393,2901.2,2899.2,3.75499281]
[1769014658132,2.98881888,2901.5,2899.7,0.17255]
[1769014658333,1.02276492,2901.4,2899.7,0.17255]
[1769014658637,0.00315495,2901.5,2899.9,0.17254]
[1769014658835,1.02275692,2901.4,2899.9,0.17254]
[1769014659033,1.02273272,2901.3,2899.5,0.17257]
[1769014659239,1.02273272,2901.2,2899.5,0.17257]
[1769014659430,2.98781888,2901.5,2899.5,0.17257]
[1769014659629,3.56678041,2901.3,2899.1,0.00337025]
[1769014659831,0.86566393,2900.5,2899.1,0.00337025]
[1769014660036,1.02250178,2900.4,2899.1,0.00337025]
[1769014660235,1.02250178,2900.3,2899.1,0.00337025]
[1769014660438,1.02250178,2900.2,2899.1,0.00337025]
[1769014660638,2.121,2900.4,2899.1,0.00337025]
[1769014660838,1.02067312,2900.3,2899.1,0.00337025]
[1769014661041,1.11226235,2900.7,2899.1,0.00337025]
[1769014661042,0.86566393,2900.9,2899.1,3.75836306]
[1769014661244,0.86566393,2901.4,2899.6,0.17256]
[1769014661634,5.45366436,2901.3,2899.6,0.17256]
[1769014661937,1.02122002,2901.2,2899.6,0.17256]
[1769014662130,1.02122002,2901.1,2899.8,0.17254]
[1769014662333,0.00315495,2901.5,2900.1,3.92752281]
[1769014662738,0.00315495,2901.5,2900.3,0.00277402]
[1769014662934,3.56678041,2901.3,2899.1,0.00337025]
[1769014663135,3.73925041,2901.1,2899.1,0.00337025]
[1769014663444,1.11226235,2901.3,2899.1,0.00337025]
[1769014663445,4.43244434,2900.5,2899.1,0.00337025]
[1769014663740,4.43244434,2900.5,2896.6,24.156]
[1769014663741,0.17255,2899.9,2897.8,0.17267]
[1769014663941,2.123,2899.9,2897.8,0.17267]
[1769014664135,1.01999948,2899.8,2897.8,0.17267]
[1769014664335,1.01999948,2899.7,2897.8,0.17267]
[1769014664537,5.68978041,2899.9,2897.8,0.17267]
[1769014664735,3.56678041,2899.7,2897.8,0.00391125]
[1769014664939,4.58609604,2899.6,2897.8,0.00391125]
[1769014665142,1.01931563,2899.5,2897.8,0.00391125]
[1769014665342,2.123,2899.5,2897.8,0.00391125]
[1769014665948,3.56678041,2899.6,2897.8,0.00391125]
[1769014666148,2.123,2899.6,2897.9,0.00277402]
[1769014666345,3.5799883,2900.2,2897.9,3.49586641]
[1769014666551,1.01918205,2900.1,2898.0,3.49864043]
[1769014666845,1.01918205,2900.1,2897.8,0.00391125]
[1769014666846,0.86566393,2899.8,2897.8,0.00391125]
[1769014667045,3.5799883,2899.6,2897.8,0.00391125]
[1769014667246,4.59917035,2899.5,2897.8,0.00391125]
[1769014667447,5.7019883,2900.1,2897.9,3.49586641]
[1769014667648,1.01890521,2900.0,2897.9,3.49586641]
[1769014667849,1.01890521,2899.9,2898.0,0.17266]
[1769014668045,0.86566393,2900.5,2898.4,0.17263]
[1769014668251,3.5799883,2900.3,2897.8,0.00391125]
[1769014668551,3.5799883,2900.1,2897.8,0.17658125]
[1769014668752,3.5799883,2899.9,2897.8,0.17658125]
[1769014669054,4.44565223,2899.7,2897.8,0.00391125]
[1769014669243,3.5799883,2899.5,2897.8,0.00391125]
[1769014669445,4.59914629,2899.4,2897.8,0.00391125]
[1769014669647,1.01915799,2899.3,2897.8,0.00391125]
[1769014669843,1.01915799,2899.2,2897.8,0.00391125]
[1769014670045,2.123,2899.2,2897.8,0.00391125]
[1769014670251,3.58340546,2899.4,2897.8,0.00391125]
[1769014670456,1.01816153,2899.3,2897.8,0.00391125]
[1769014670656,3.58340546,2899.4,2897.8,0.00391125]
[1769014670858,6.72010484,2899.3,2897.8,0.00391125]
[1769014671156,1.01811654,2899.2,2897.8,0.00391125]
[1769014671452,5.7019883,2899.3,2897.8,0.00391125]
[1769014671760,3.5799883,2898.4,2895.3,3.49586641]
[1769014671963,5.7029883,2898.4,2896.1,3.49586641]
[1769014672353,5.7029883,2898.4,2896.3,0.00277402]
[1769014672663,3.5799883,2898.4,2896.3,0.00270694]
[1769014672954,2.124,2898.3,2896.3,0.00548096]
[1769014673156,5.7039883,2898.3,2896.3,0.00548096]
[1769014673357,5.7039883,2898.3,2896.3,0.00270694]
[1769014673358,3.5799883,2898.1,2896.3,0.00270694]
[1769014673659,3.5799883,2897.7,2895.0,0.17283]
[1769014673858,3.5799883,2897.5,2895.0,0.17283]
[1769014674061,3.5799883,2897.3,2895.0,0.17283]
[1769014674254,3.5799883,2897.1,2894.9,3.49586641]
[1769014674459,2.099,2897.0,2894.9,3.49586641]
[1769014674657,2.1023408,2897.0,2895.0,0.00277402]
[1769014674857,0.0033408,2897.0,2895.1,0.00277402]
[1769014675051,2.1,2896.9,2895.1,0.00277402]
[1769014675257,3.5799883,2896.9,2894.9,0.00294677]
[1769014675452,0.0033408,2897.0,2895.1,3.66869641]
[1769014675658,0.0033408,2897.0,2895.3,0.00277402]
[1769014675862,0.0033408,2897.0,2895.1,3.66869641]
[1769014676054,0.0033408,2897.0,2895.7,0.00277402]
[1769014676260,0.0033408,2897.0,2895.6,0.00277402]
[1769014676460,0.0033408,2897.0,2895.8,0.00277402]
[1769014676657,0.0033408,2897.0,2896.2,0.00277402]
[1769014676853,3.5799883,2898.8,2896.3,3.49586641]
[1769014677059,3.5799883,2898.8,2896.8,0.17273]
[1769014677364,3.5799883,2898.8,2895.0,40.8]
[1769014677365,2.122,2899.4,2896.9,3.66858641]
[1769014677665,5.7009883,2899.3,2896.9,3.66858641]
[1769014677864,3.58405026,2899.3,2896.9,3.66858641]
[1769014678057,2.124,2899.2,2897.0,0.00277402]
[1769014678257,2.124,2899.1,2897.0,0.00362281]
[1769014678463,3.5799883,2899.2,2897.1,0.00277402]
[1769014678862,3.65081692,2899.1,2897.0,0.00362281]
[1769014679063,3.47821692,2898.9,2897.0,0.00362281]
[1769014679562,3.47821692,2898.9,2897.2,0.00277402]
[1769014679766,3.47821692,2898.9,2897.0,0.00362281]
[1769014679957,3.47821692,2898.7,2897.0,0.00362281]
[1769014680161,0.17264,2898.3,2895.7,3.62354017]
[1769014680364,3.47821692,2898.1,2895.7,3.62354017]
[1769014680665,3.47821692,2897.9,2895.6,0.1728]
[1769014680861,3.47821692,2897.7,2895.1,3.62354017]
[1769014681064,3.47821692,2897.4,2895.1,3.62354017]
[1769014681260,3.47821692,2897.4,2895.1,3.62626721]
[1769014681462,3.47821692,2897.4,2895.2,0.00277402]
[1769014681661,3.47821692,2897.0,2895.1,0.00272704]
[1769014681866,3.47821692,2896.5,2895.1,0.00272704]
[1769014682963,0.00359315,2897.0,2895.4,0.00277402]
[1769014683269,0.00359315,2897.0,2895.1,0.00272704]
[1769014683270,0.00359315,2897.0,2895.1,3.62626721]
[1769014683573,0.00359315,2897.0,2895.6,3.62354017]
[1769014683866,3.47821692,2899.0,2896.5,0.17274]
[1769014684057,3.47821692,2898.6,2895.9,3.62354017]
[1769014684260,3.47821692,2897.9,2895.3,3.79636017]
[1769014684470,3.47821692,2898.5,2895.6,3.62354017]
[1769014684669,3.47821692,2899.2,2897.0,0.17271]
[1769014684967,3.48213202,2899.2,2897.0,0.17271]
[1769014685164,3.48213202,2899.2,2897.1,0.00277402]
[1769014685567,3.48213202,2899.2,2896.8,3.62354017]
[1769014685771,3.48213202,2899.2,2896.5,0.17274]
[1769014686173,1.18627362,2899.1,2896.5,0.17274]
[1769014686466,3.47821692,2898.9,2896.6,0.00277402]
[1769014686666,3.47821692,2898.9,2896.8,0.00277402]
[1769014686865,3.47821692,2898.9,2897.0,0.00277402]
[1769014687062,3.47821692,2898.9,2896.0,3.62354017]
[1769014687363,3.47821692,2898.7,2896.1,3.62354017]
[1769014687568,3.47821692,2898.7,2896.2,3.62354017]
[1769014687870,3.47821692,2898.7,2896.4,0.00277402]
[1769014688077,3.47821692,2898.7,2896.3,3.79630017]
[1769014688269,3.47821692,2898.7,2896.5,0.00277402]
[1769014688773,3.47821692,2898.7,2896.7,0.00277402]
[1769014688972,0.86957903,2899.2,2896.6,3.79905419]
[1769014689163,0.86957903,2899.2,2895.3,40.8]
[1769014689164,0.0039151,2899.2,2897.6,3.62354017]
[1769014689367,0.0039151,2899.2,2897.6,3.62756728]
[1769014689566,0.0039151,2899.2,2898.2,0.00277402]
[1769014689764,1.11226235,2900.6,2898.2,0.00277402]
[1769014689765,3.47821692,2900.6,2898.9,0.00277402]
[1769014689973,3.47821692,2900.6,2898.7,0.00277402]
[1769014690270,3.47821692,2900.6,2897.6,0.00402711]
[1769014690271,3.47821692,2900.6,2897.8,0.17267]
[1769014690472,3.47821692,2900.4,2897.8,0.17267]
[1769014690861,3.48146071,2900.4,2897.8,0.17544402]
[1769014691062,3.48146071,2900.4,2897.8,0.17267]
[1769014691368,3.48146071,2900.4,2898.0,0.00277402]
[1769014691573,3.48146071,2900.4,2897.9,0.17543402]
[1769014691868,3.48146071,2900.4,2898.2,0.00277402]
[1769014692067,3.48146071,2900.4,2897.9,0.17266]
[1769014692268,3.48146071,2900.4,2898.2,0.00277402]
[1769014692473,4.34712464,2900.4,2898.0,0.00277402]
[1769014692668,4.34712464,2900.4,2897.9,0.17266]
[1769014692971,4.34712464,2900.4,2898.1,0.00277402]
[1769014692972,3.47821692,2900.2,2898.1,0.00277402]
[1769014693173,1.03817393,2900.5,2897.6,0.00402711]
[1769014693174,0.86566393,2900.5,2899.1,0.00277402]
[1769014693370,1.11226235,2902.3,2900.4,0.00277402]
[1769014693669,1.5711146,2902.1,2899.4,0.17257]
[1769014693970,3.47821692,2901.7,2899.3,0.17257]
[1769014694273,3.48099767,2901.7,2899.3,3.80029652]
[1769014694675,3.48099767,2901.7,2899.7,0.00277402]
[1769014694973,3.48099767,2901.7,2899.6,0.00277402]
[1769014695173,3.48099767,2901.7,2899.3,3.80029652]
[1769014695174,3.48099767,2901.7,2899.5,0.00277402]
[1769014695370,3.48099767,2901.7,2899.3,3.80029652]
[1769014695371,3.48099767,2901.7,2899.6,0.00277402]
[1769014695674,3.48099767,2901.7,2899.7,0.00277402]
[1769014695983,3.54760942,2901.3,2899.3,0.00418635]
[1769014696167,3.54760942,2900.8,2899.3,0.00418635]
[1769014696771,3.54760942,2900.6,2898.2,0.17264]
[1769014696971,3.54760942,2900.3,2897.6,0.17268]
[1769014697174,3.72012942,2900.3,2897.6,3.753478]
[1769014697480,3.72012942,2900.3,2897.9,0.00277402]
[1769014697868,3.72012942,2900.3,2898.0,0.00277402]
[1769014698373,3.72012942,2900.3,2898.1,0.00277402]
[1769014698568,0.17253,2900.2,2898.0,0.00277402]
[1769014698774,3.54760942,2899.7,2897.9,0.00376198]
[1769014699171,3.54760942,2899.7,2898.2,0.00277402]
[1769014699574,3.54760942,2899.7,2898.4,0.00277402]
[1769014699971,3.72012942,2900.3,2897.9,0.00376198]
[1769014700171,3.54760942,2900.3,2898.4,0.00277402]
[1769014700482,3.54760942,2900.9,2898.9,0.00277402]
[1769014700781,3.54760942,2900.9,2897.9,0.00376198]
[1769014700782,3.54760942,2900.9,2898.5,3.580798]
[1769014701079,3.54760942,2900.9,2898.9,0.1726]
[1769014701478,3.54760942,2900.9,2899.2,0.00277402]
[1769014702078,3.54760942,2901.5,2899.8,0.00277402]
[1769014702275,3.54760942,2901.5,2899.6,0.00277402]
[1769014702778,3.54760942,2901.5,2899.2,0.17259]
[1769014703078,3.54760942,2901.5,2899.6,0.00277402]
[1769014703279,3.54760942,2901.5,2899.5,0.17534402]
[1769014703575,3.54760942,2901.5,2899.8,0.00277402]
[1769014703776,3.54760942,2901.5,2899.7,0.00277402]
[1769014703980,3.54760942,2901.5,2899.6,0.00277402]
[1769014704180,3.54760942,2901.5,2899.3,0.00277402]
[1769014704474,3.54760942,2901.2,2899.1,0.17259]
[1769014704675,3.72007942,2901.2,2899.1,0.00277402]
[1769014704877,3.72007942,2901.2,2899.4,0.00277402]
[1769014705073,0.00278075,2901.7,2898.3,1.94378742]
[1769014705074,3.54760942,2901.0,2898.7,0.00277402]
[1769014705270,0.00278075,2901.7,2898.3,3.753438]
[1769014705271,3.54760942,2900.7,2898.3,3.753438]
[1769014705471,3.54760942,2900.7,2898.6,0.17262]
[1769014705675,3.54760942,2900.7,2898.9,0.00277402]
[1769014705876,3.54760942,2900.7,2899.0,0.00277402]
[1769014706081,3.54760942,2900.7,2898.9,0.00277402]
[1769014706373,3.54760942,2900.7,2899.0,0.00277402]
[1769014706782,3.54760942,2900.7,2899.2,0.00277402]
[1769014706973,3.54760942,2900.7,2899.1,0.00277402]
[1769014707381,3.54760942,2900.3,2898.1,0.17265]
[1769014707575,3.54760942,2900.9,2898.6,0.17262]
[1769014707776,3.54760942,2900.9,2898.6,3.753418]
[1769014707976,3.54760942,2900.9,2899.3,0.00277402]
[1769014708274,3.54760942,2900.9,2899.0,0.17259]
[1769014708877,3.54760942,2900.9,2899.3,0.00277402]
[1769014709278,3.54760942,2900.9,2899.4,0.00277402]
[1769014709483,3.54760942,2900.9,2899.3,0.00277402]
[1769014709879,1.2874831,2901.7,2899.5,0.00277402]
[1769014710084,1.2874831,2901.7,2898.3,1.94378742]
[1769014710085,0.00278075,2901.7,2899.4,0.00277402]
[1769014710382,0.00278075,2901.7,2896.7,0.17273]
[1769014710383,0.88532699,2902.2,2900.2,3.58357202]
[1769014710682,4.43293641,2902.2,2900.2,3.580798]
[1769014710875,4.43293641,2902.2,2900.7,0.00277402]
[1769014711280,4.43555685,2902.2,2901.0,0.00277402]
[1769014711480,4.43555685,2902.2,2900.8,0.00277402]
[1769014711481,3.54760942,2902.1,2900.8,0.00277402]
[1769014711677,3.54760942,2902.1,2900.7,0.00416355]
[1769014711874,0.88794743,2902.2,2899.6,3.580798]
[1769014711875,3.72003942,2901.9,2899.6,3.580798]
[1769014712083,3.54760942,2901.4,2899.8,0.00277402]
[1769014712383,3.54760942,2901.4,2899.1,3.753388]
[1769014712582,3.54760942,2901.4,2899.4,0.00277402]
[1769014712784,3.54760942,2901.0,2899.3,0.00277402]
[1769014712983,3.72008942,2901.0,2899.3,0.00421357]
[1769014713182,4.43555685,2902.2,2899.8,0.17255]
[1769014713381,3.54760942,2902.0,2899.8,3.753348]
[1769014713577,1.01353804,2901.9,2899.9,0.17254]
[1769014713887,3.54760942,2902.0,2899.9,0.17254]
[1769014714191,1.01350875,2901.9,2899.9,3.753338]
[1769014714483,1.01428345,2901.8,2900.4,0.00277402]
[1769014714684,3.54760942,2902.0,2900.4,0.00277402]
[1769014714877,1.01428049,2901.9,2900.6,0.00277402]
[1769014715077,1.01428049,2901.8,2900.4,0.00277402]
[1769014715277,3.54760942,2902.0,2900.4,0.00277402]
[1769014715478,1.01444658,2901.9,2899.9,3.753338]
[1769014715679,3.54760942,2902.0,2899.9,3.753338]
[1769014715680,1.01445628,2901.8,2899.9,3.753338]
[1769014715880,3.54760942,2902.0,2900.4,0.00277402]
[1769014716080,1.01445595,2901.9,2900.4,0.00277402]
[1769014716383,1.01445595,2901.9,2899.9,3.753338]
[1769014716384,3.54760942,2901.4,2899.3,3.58501157]
[1769014716583,1.01433769,2901.3,2899.4,0.00277402]
[1769014716780,1.01453046,2901.2,2899.3,0.00421357]
[1769014717086,3.72009942,2900.9,2899.3,0.00421357]
[1769014717282,4.7345607,2900.8,2899.3,0.00421357]
[1769014717484,2.90719384,2902.1,2898.1,3.580798]
[1769014717485,3.54760942,2900.6,2898.1,3.580798]
[1769014717680,1.11226235,2901.1,2897.4,3.753488]
[1769014717681,3.72015942,2899.9,2897.4,3.753488]
[1769014717885,3.54760942,2899.7,2897.4,3.753488]
[1769014718185,3.72017942,2899.5,2896.9,3.580798]
[1769014718377,4.65987177,2899.3,2897.1,0.00277402]
[1769014718581,3.54760942,2899.1,2897.2,0.00277402]
[1769014718781,4.5620707,2899.0,2897.4,0.00277402]
[1769014718981,0.17681813,2899.3,2897.1,0.0029808]
[1769014718982,4.5620707,2898.9,2897.1,0.0029808]
[1769014719186,1.01446128,2898.8,2897.1,0.0029808]
[1769014719382,1.01446128,2898.8,2897.3,0.00277402]
[1769014719584,1.01446128,2898.8,2897.1,0.0029808]
[1769014719884,4.5620707,2898.8,2897.5,0.00277402]
[1769014720188,1.01446128,2898.7,2897.5,0.00277402]
[1769014720683,1.01446128,2898.7,2897.6,0.00277402]
[1769014720888,0.00423813,2899.3,2898.2,0.00277402]
[1769014721184,0.00423813,2899.3,2897.1,3.5837788]
[1769014721389,0.00423813,2899.3,2897.9,3.580798]
[1769014721697,0.00423813,2899.3,2897.9,3.753458]
[1769014721890,0.00423813,2899.3,2898.9,0.00277402]
[1769014722281,0.00423813,2899.3,2897.2,3.753498]
[1769014722584,0.00423813,2899.3,2897.5,3.580798]
[1769014722978,0.00423813,2899.3,2897.5,3.753478]
[1769014723382,1.11226235,2900.4,2897.5,3.580798]
[1769014723577,3.72009942,2900.9,2898.3,3.753438]
[1769014723781,3.54760942,2900.7,2898.3,3.753438]
[1769014723980,3.54760942,2900.5,2898.3,3.753438]
[1769014724292,3.54760942,2900.3,2897.7,3.580798]
[1769014724591,3.55080576,2900.3,2897.8,3.580798]
[1769014724892,1.01018106,2900.2,2897.8,3.580798]
[1769014725086,1.01018106,2900.1,2897.8,3.580798]
[1769014725292,3.54760942,2900.1,2897.8,3.580798]
[1769014725479,3.54760942,2900.1,2897.9,0.17266]
[1769014725790,3.41655448,2899.9,2897.2,2.11648742]
[1769014726093,3.41655448,2899.7,2897.2,3.64535599]
[1769014726292,3.41655448,2899.7,2897.4,3.47265599]
[1769014726482,3.41655448,2899.7,2897.4,3.64534599]
[1769014726689,0.17253,2900.1,2897.6,3.47265599]
[1769014726892,1.01014373,2900.0,2897.6,3.47265599]
[1769014727088,3.41975082,2900.3,2897.7,3.47265599]
[1769014727287,3.41975082,2900.3,2897.8,3.47265599]
[1769014727486,3.41975082,2900.3,2898.1,3.64530599]
[1769014727693,0.00319634,2900.3,2898.5,3.47265599]
[1769014729494,0.00319634,2900.3,2898.4,3.64528599]
[1769014730389,0.00319634,2900.3,2898.5,0.17262]
[1769014730594,0.00319634,2900.3,2898.5,3.64527599]
[1769014730889,0.00319634,2900.3,2898.7,3.64526599]
[1769014731288,0.00319634,2900.3,2898.7,3.47265599]
[1769014731594,0.00319634,2900.3,2899.2,0.17258]
[1769014731793,0.00319634,2900.3,2899.2,0.00378516]
[1769014737000,0.00319634,2900.3,2899.2,3.47644115]
[1769014737195,3.41655448,2901.4,2899.4,3.64522599]
[1769014737402,1.01094043,2901.3,2899.4,3.64522599]
[1769014737599,1.01094043,2901.2,2899.4,3.64522599]
[1769014737898,3.41655448,2901.4,2899.4,3.64522599]
[1769014738096,4.42748197,2901.3,2899.2,0.00378516]
[1769014738289,0.00411148,2901.4,2899.2,0.00378516]
[1769014738290,3.41655448,2900.9,2899.2,0.00378516]
[1769014738691,1.01055135,2900.8,2899.2,0.00378516]
[1769014738888,4.70914528,2900.7,2899.2,0.00378516]
[1769014739095,3.69859393,2900.5,2899.2,0.00378516]
[1769014739394,0.17256,2899.7,2897.7,3.59259338]
[1769014739598,3.87115393,2899.7,2897.7,3.59259338]
[1769014740090,3.87115393,2899.7,2897.7,3.76526338]
[1769014740285,3.87115393,2899.7,2897.7,0.17632469]
[1769014740490,1.01061,2899.6,2897.7,0.17632469]
[1769014740697,3.87115393,2899.7,2897.7,0.17632469]
[1769014740896,4.7092113,2899.6,2897.7,0.17632469]
[1769014741099,4.7092113,2899.5,2897.7,0.00365469]
[1769014741293,3.69859393,2898.9,2896.3,0.17276]
[1769014741490,3.69859393,2898.7,2896.3,0.17276]
[1769014741689,3.87121393,2898.7,2896.4,3.76534338]
[1769014742091,3.69859393,2898.7,2896.4,3.76534338]
[1769014742495,0.00316252,2898.7,2896.4,3.59534625]
[1769014742694,0.00316252,2898.7,2897.5,3.76528338]
[1769014743493,3.69859393,2899.9,2897.8,3.76526338]
[1769014743704,3.69859393,2899.9,2896.6,1.94378742]
[1769014743705,3.69859393,2899.1,2896.6,0.17274]
[1769014743994,3.69859393,2899.1,2896.4,0.00275287]
[1769014743995,0.17262,2898.6,2896.4,0.00275287]
[1769014744201,3.69859393,2897.8,2896.4,0.00275287]
[1769014744395,3.69859393,2897.8,2895.3,3.76541338]
[1769014744396,0.17269,2897.5,2895.3,3.59259338]
[1769014744600,3.69859393,2897.3,2894.8,0.17285]
[1769014744804,3.87129393,2897.3,2894.8,0.17285]
[1769014745006,3.87129393,2897.3,2894.9,0.17284]
[1769014745494,3.87129393,2897.3,2894.9,0.17582266]
[1769014745693,3.69859393,2896.9,2894.9,0.00298266]